[Event "Early-Titled-Tuesday-Blitz-January-16-2024"]
[Site "Chess.com"]
[Date "2024.01.16"]
[Round "3"]
[White "santosalberto1987"]
[Black "NastyaHn"]
[Result "1/2-1/2"]
[WhiteElo "2520"]
[BlackElo "2302"]
[TimeControl "180+1"]
[EndTime "8:30:02 PST"]
[Termination "Game drawn - insufficient material"]

1. e4 {[%clk 0:03:00.9]} 1... e6 {[%clk 0:02:57.6]} 2. d4 {[%clk 0:03:00.7]}
2... d5 {[%clk 0:02:56.5]} 3. Nc3 {[%clk 0:03:01.2]} 3... Bb4 {[%clk 0:02:56.3]}
4. e5 {[%clk 0:03:01.2]} 4... c5 {[%clk 0:02:56]} 5. a3 {[%clk 0:03:00.5]} 5...
Bxc3+ {[%clk 0:02:56]} 6. bxc3 {[%clk 0:03:01.4]} 6... Ne7 {[%clk 0:02:55.6]} 7.
Nf3 {[%clk 0:03:01.2]} 7... Nbc6 {[%clk 0:02:52.9]} 8. a4 {[%clk 0:02:59.1]}
8... O-O {[%clk 0:02:46.2]} 9. h4 {[%clk 0:02:53.5]} 9... h6 {[%clk 0:02:43.9]}
10. Bd3 {[%clk 0:02:50.4]} 10... c4 {[%clk 0:02:42.7]} 11. Be2 {[%clk
0:02:50.8]} 11... a6 {[%clk 0:02:41.5]} 12. g4 {[%clk 0:02:49.2]} 12... Kh8
{[%clk 0:02:21.4]} 13. Be3 {[%clk 0:02:49]} 13... Bd7 {[%clk 0:02:19.9]} 14. Qd2
{[%clk 0:02:49]} 14... Ng8 {[%clk 0:02:16.3]} 15. h5 {[%clk 0:02:46.6]} 15... f5
{[%clk 0:01:58.4]} 16. g5 {[%clk 0:02:36.9]} 16... Qe7 {[%clk 0:01:48.4]} 17.
gxh6 {[%clk 0:02:35.9]} 17... gxh6 {[%clk 0:01:48.2]} 18. Bxh6 {[%clk
0:02:35.5]} 18... Nxh6 {[%clk 0:01:48.4]} 19. Qxh6+ {[%clk 0:02:35.1]} 19... Qh7
{[%clk 0:01:49]} 20. Qxh7+ {[%clk 0:02:25.8]} 20... Kxh7 {[%clk 0:01:49.2]} 21.
Kd2 {[%clk 0:02:25.9]} 21... Rg8 {[%clk 0:01:48]} 22. Rag1 {[%clk 0:02:20.6]}
22... Kh6 {[%clk 0:01:47.3]} 23. Nh4 {[%clk 0:02:16.4]} 23... Ne7 {[%clk
0:01:46.9]} 24. Ng6 {[%clk 0:02:15]} 24... Rg7 {[%clk 0:01:37.1]} 25. Nxe7
{[%clk 0:02:11.9]} 25... Rxe7 {[%clk 0:01:37.2]} 26. Rg6+ {[%clk 0:02:11.7]}
26... Kh7 {[%clk 0:01:37.6]} 27. Rhg1 {[%clk 0:02:11.2]} 27... Bxa4 {[%clk
0:01:36.7]} 28. h6 {[%clk 0:02:01.5]} 28... Rae8 {[%clk 0:01:35.4]} 29. Bh5
{[%clk 0:02:00]} 29... Bc6 {[%clk 0:01:17]} 30. Rg7+ {[%clk 0:01:31.4]} 30...
Kxh6 {[%clk 0:01:16.2]} 31. Bxe8 {[%clk 0:00:59.8]} 31... Rxg7 {[%clk
0:01:15.3]} 32. Rh1+ {[%clk 0:00:58.8]} 32... Kg5 {[%clk 0:01:14.7]} 33. Bxc6
{[%clk 0:00:58]} 33... bxc6 {[%clk 0:01:13.9]} 34. Ra1 {[%clk 0:00:53.8]} 34...
Ra7 {[%clk 0:01:09]} 35. Rg1+ {[%clk 0:00:53.5]} 35... Kf4 {[%clk 0:01:08]} 36.
Rg8 {[%clk 0:00:48.7]} 36... a5 {[%clk 0:01:07.2]} 37. Re8 {[%clk 0:00:46.9]}
37... a4 {[%clk 0:01:07.2]} 38. Kc1 {[%clk 0:00:44.7]} 38... a3 {[%clk
0:01:02.8]} 39. Kb1 {[%clk 0:00:44.9]} 39... Rb7+ {[%clk 0:01:03.1]} 40. Ka2
{[%clk 0:00:32.2]} 40... Rb2+ {[%clk 0:01:02.7]} 41. Kxa3 {[%clk 0:00:32.6]}
41... Rxc2 {[%clk 0:01:03]} 42. Kb4 {[%clk 0:00:33.1]} 42... Rxf2 {[%clk
0:00:59.7]} 43. Rxe6 {[%clk 0:00:32.7]} 43... Ke3 {[%clk 0:00:51]} 44. Rxc6
{[%clk 0:00:32.6]} 44... Kd3 {[%clk 0:00:51]} 45. Rf6 {[%clk 0:00:30.4]} 45...
f4 {[%clk 0:00:43.9]} 46. e6 {[%clk 0:00:27]} 46... Re2 {[%clk 0:00:40.1]} 47.
Rxf4 {[%clk 0:00:23.5]} 47... Rxe6 {[%clk 0:00:39.8]} 48. Rf3+ {[%clk
0:00:23.9]} 48... Ke4 {[%clk 0:00:33.4]} 49. Rh3 {[%clk 0:00:20.9]} 49... Re8
{[%clk 0:00:33]} 50. Rh6 {[%clk 0:00:16.8]} 50... Kd3 {[%clk 0:00:29]} 51. Rh3+
{[%clk 0:00:16.3]} 51... Ke4 {[%clk 0:00:28.9]} 52. Kc5 {[%clk 0:00:14.9]} 52...
Rc8+ {[%clk 0:00:27.5]} 53. Kd6 {[%clk 0:00:15.1]} 53... Rd8+ {[%clk 0:00:27.5]}
54. Kc7 {[%clk 0:00:15.2]} 54... Rg8 {[%clk 0:00:25.1]} 55. Rh5 {[%clk
0:00:14.5]} 55... Kd3 {[%clk 0:00:20.6]} 56. Rxd5 {[%clk 0:00:10.3]} 56... Kxc3
{[%clk 0:00:20.9]} 57. Rd6 {[%clk 0:00:06.2]} 57... Kd3 {[%clk 0:00:20]} 58. d5
{[%clk 0:00:06.7]} 58... c3 {[%clk 0:00:20.2]} 59. Rc6 {[%clk 0:00:07.1]} 59...
c2 {[%clk 0:00:20.3]} 60. d6 {[%clk 0:00:06.9]} 60... Kd2 {[%clk 0:00:20.6]} 61.
d7 {[%clk 0:00:06.8]} 61... c1=Q {[%clk 0:00:20.7]} 62. Rxc1 {[%clk 0:00:07.4]}
62... Kxc1 {[%clk 0:00:21]} 63. d8=Q {[%clk 0:00:08.3]} 63... Rxd8 {[%clk
0:00:20.7]} 64. Kxd8 {[%clk 0:00:09.2]} 1/2-1/2

[Event "Early-Titled-Tuesday-Blitz-January-16-2024"]
[Site "Chess.com"]
[Date "2024.01.16"]
[Round "3"]
[White "Anton_Demchenko"]
[Black "SaraBlackPanther"]
[Result "1-0"]
[WhiteElo "2983"]
[BlackElo "2726"]
[TimeControl "180+1"]
[EndTime "8:30:03 PST"]
[Termination "Anton_Demchenko won by resignation"]

1. e4 {[%clk 0:03:00.9]} 1... c5 {[%clk 0:02:59.6]} 2. a3 {[%clk 0:02:58.5]}
2... g6 {[%clk 0:02:53.6]} 3. Bc4 {[%clk 0:02:58]} 3... Bg7 {[%clk 0:02:53.3]}
4. d3 {[%clk 0:02:58.6]} 4... Nc6 {[%clk 0:02:50.5]} 5. Nc3 {[%clk 0:02:58.1]}
5... e6 {[%clk 0:02:48.2]} 6. Ba2 {[%clk 0:02:52.9]} 6... Nge7 {[%clk 0:02:48]}
7. h4 {[%clk 0:02:50.5]} 7... h6 {[%clk 0:02:44.7]} 8. h5 {[%clk 0:02:50.3]}
8... g5 {[%clk 0:02:43.9]} 9. f4 {[%clk 0:02:50.9]} 9... gxf4 {[%clk 0:02:43.1]}
10. Bxf4 {[%clk 0:02:51.8]} 10... d5 {[%clk 0:02:42.6]} 11. Nf3 {[%clk
0:02:51.6]} 11... O-O {[%clk 0:02:34]} 12. Qd2 {[%clk 0:02:48.1]} 12... Kh7
{[%clk 0:02:34]} 13. O-O-O {[%clk 0:02:09.2]} 13... d4 {[%clk 0:01:49.8]} 14.
Ne2 {[%clk 0:02:08.9]} 14... e5 {[%clk 0:01:50.4]} 15. Bg3 {[%clk 0:02:05.4]}
15... b5 {[%clk 0:01:41.6]} 16. Bh4 {[%clk 0:02:00.7]} 16... Qd6 {[%clk
0:01:27]} 17. g4 {[%clk 0:01:55.2]} 17... Bxg4 {[%clk 0:01:23.5]} 18. Rdf1
{[%clk 0:01:54.5]} 18... f5 {[%clk 0:01:19.4]} 19. Nh2 {[%clk 0:01:54.7]} 19...
Bxh5 {[%clk 0:01:13.7]} 20. Ng3 {[%clk 0:01:53.4]} 20... Bg6 {[%clk 0:01:08.1]}
21. exf5 {[%clk 0:01:53.9]} 21... Nxf5 {[%clk 0:01:07.5]} 22. Ne4 {[%clk
0:01:54.6]} 22... Qc7 {[%clk 0:01:02.9]} 23. Bg5 {[%clk 0:01:34.8]} 23... Ne3
{[%clk 0:00:53.1]} 24. Bxe3 {[%clk 0:01:29.3]} 24... dxe3 {[%clk 0:00:52.8]} 25.
Qxe3 {[%clk 0:01:24.6]} 25... c4 {[%clk 0:00:50.4]} 26. Rxf8 {[%clk 0:01:12.6]}
26... Rxf8 {[%clk 0:00:49.6]} 27. Ng4 {[%clk 0:01:13.3]} 27... Rf4 {[%clk
0:00:14.5]} 28. Ng5+ {[%clk 0:01:13.3]} 28... Kh8 {[%clk 0:00:14.3]} 29. Nxh6
{[%clk 0:00:59.4]} 29... Nd4 {[%clk 0:00:14.2]} 30. Nf5+ {[%clk 0:00:33.4]}
30... Kg8 {[%clk 0:00:13.9]} 31. Nxd4 {[%clk 0:00:34.1]} 31... Rxd4 {[%clk
0:00:11.7]} 32. Ne6 {[%clk 0:00:34.1]} 32... Qd7 {[%clk 0:00:07.6]} 33. Nxd4
{[%clk 0:00:34.2]} 33... exd4 {[%clk 0:00:08.2]} 34. Qg5 {[%clk 0:00:29.3]}
34... Qe6 {[%clk 0:00:05.4]} 35. Kb1 {[%clk 0:00:25.4]} 35... Qc6 {[%clk
0:00:03.1]} 36. Rg1 {[%clk 0:00:23.7]} 36... Kh7 {[%clk 0:00:03.3]} 37. dxc4
{[%clk 0:00:13.4]} 37... b4 {[%clk 0:00:02.8]} 38. axb4 {[%clk 0:00:09.9]} 38...
Qe4 {[%clk 0:00:02.9]} 39. Bb3 {[%clk 0:00:09]} 39... d3 {[%clk 0:00:02.9]} 40.
Qxg6+ {[%clk 0:00:08.5]} 40... Qxg6 {[%clk 0:00:03.2]} 41. Rxg6 {[%clk
0:00:09.3]} 41... Kxg6 {[%clk 0:00:03.6]} 42. cxd3 {[%clk 0:00:10.1]} 42... Kf5
{[%clk 0:00:02.7]} 43. Kc2 {[%clk 0:00:10.1]} 43... Ke5 {[%clk 0:00:02.2]} 44.
Ba4 {[%clk 0:00:10.1]} 44... Kd4 {[%clk 0:00:02.6]} 45. Bc6 {[%clk 0:00:09.2]}
45... Bf8 {[%clk 0:00:03.3]} 46. b5 {[%clk 0:00:09.6]} 46... Bc5 {[%clk
0:00:03.7]} 47. Be4 {[%clk 0:00:10.4]} 47... Bb4 {[%clk 0:00:04.1]} 48. Kb3
{[%clk 0:00:10.8]} 48... Bc5 {[%clk 0:00:04.8]} 49. Ka4 {[%clk 0:00:11.5]} 49...
Bb6 {[%clk 0:00:05.6]} 50. b4 {[%clk 0:00:12.2]} 50... Kc3 {[%clk 0:00:05.7]}
51. c5 {[%clk 0:00:12.6]} 51... Bc7 {[%clk 0:00:06.4]} 52. b6 {[%clk 0:00:07.2]}
52... axb6 {[%clk 0:00:06.5]} 53. c6 {[%clk 0:00:08]} 53... Bd6 {[%clk 0:00:05]}
54. Kb5 {[%clk 0:00:08.4]} 54... Kb3 {[%clk 0:00:05.3]} 55. Kxb6 {[%clk
0:00:07.7]} 55... Kxb4 {[%clk 0:00:05.9]} 56. c7 {[%clk 0:00:08.4]} 56... Bxc7+
{[%clk 0:00:06.6]} 57. Kxc7 {[%clk 0:00:09.1]} 1-0

[Event "Early-Titled-Tuesday-Blitz-January-16-2024"]
[Site "Chess.com"]
[Date "2024.01.16"]
[Round "3"]
[White "tteshan"]
[Black "Khromkin"]
[Result "1/2-1/2"]
[WhiteElo "2597"]
[BlackElo "2390"]
[TimeControl "180+1"]
[EndTime "8:30:04 PST"]
[Termination "Game drawn by repetition"]

1. d4 {[%clk 0:03:00.9]} 1... d5 {[%clk 0:02:56.6]} 2. c4 {[%clk 0:03:01.3]}
2... dxc4 {[%clk 0:02:56.4]} 3. e4 {[%clk 0:03:01]} 3... e5 {[%clk 0:02:55.9]}
4. Nf3 {[%clk 0:03:00.4]} 4... Bb4+ {[%clk 0:02:55.9]} 5. Nc3 {[%clk 0:03:01.1]}
5... exd4 {[%clk 0:02:55.5]} 6. Nxd4 {[%clk 0:03:01.2]} 6... a6 {[%clk
0:02:50.6]} 7. Bxc4 {[%clk 0:02:59.8]} 7... c5 {[%clk 0:02:50.9]} 8. Nc2 {[%clk
0:02:37.8]} 8... Qxd1+ {[%clk 0:02:49.9]} 9. Kxd1 {[%clk 0:02:38.7]} 9... Nf6
{[%clk 0:02:41.2]} 10. Nxb4 {[%clk 0:02:35.7]} 10... cxb4 {[%clk 0:02:41.2]} 11.
Nd5 {[%clk 0:02:36.4]} 11... Nxd5 {[%clk 0:02:30.8]} 12. Bxd5 {[%clk 0:02:37.3]}
12... Nc6 {[%clk 0:02:30]} 13. Be3 {[%clk 0:02:35.6]} 13... Be6 {[%clk
0:02:29.9]} 14. Bxe6 {[%clk 0:02:24.9]} 14... fxe6 {[%clk 0:02:29.9]} 15. Ke2
{[%clk 0:02:25.6]} 15... Rd8 {[%clk 0:02:21.2]} 16. Rhd1 {[%clk 0:02:24.5]}
16... Kf7 {[%clk 0:02:09]} 17. f3 {[%clk 0:02:24.5]} 17... e5 {[%clk 0:02:08]}
18. Rd5 {[%clk 0:02:09.6]} 18... Rxd5 {[%clk 0:01:17]} 19. exd5 {[%clk
0:02:10.5]} 19... Ne7 {[%clk 0:01:16.5]} 20. Rd1 {[%clk 0:02:05.7]} 20... Rd8
{[%clk 0:01:14.9]} 21. d6 {[%clk 0:01:57.8]} 21... Nf5 {[%clk 0:01:14.6]} 22.
Bc5 {[%clk 0:01:56.3]} 22... Ke6 {[%clk 0:01:04.1]} 23. Bxb4 {[%clk 0:01:46.6]}
23... Nd4+ {[%clk 0:00:53.6]} 24. Kf2 {[%clk 0:01:45.1]} 24... b6 {[%clk
0:00:54]} 25. Rd2 {[%clk 0:01:30.9]} 25... a5 {[%clk 0:00:53.6]} 26. Ba3 {[%clk
0:01:11.5]} 26... Nb5 {[%clk 0:00:47.8]} 27. Rd3 {[%clk 0:01:00.7]} 27... Nxa3
{[%clk 0:00:46.3]} 28. Rxa3 {[%clk 0:01:01.6]} 28... Rxd6 {[%clk 0:00:46.2]} 29.
Ke3 {[%clk 0:00:59.8]} 29... Rd1 {[%clk 0:00:42.8]} 30. Rb3 {[%clk 0:00:59.7]}
30... Rd6 {[%clk 0:00:38.9]} 31. Rb5 {[%clk 0:00:59]} 31... Rc6 {[%clk
0:00:39.2]} 32. Kd3 {[%clk 0:00:56.5]} 32... Kd6 {[%clk 0:00:38.3]} 33. b3
{[%clk 0:00:53.9]} 33... g6 {[%clk 0:00:34.1]} 34. a4 {[%clk 0:00:50]} 34... Ke6
{[%clk 0:00:20.2]} 35. Ke4 {[%clk 0:00:47.9]} 35... Kf6 {[%clk 0:00:17.9]} 36.
Rxe5 {[%clk 0:00:41.9]} 36... Rc2 {[%clk 0:00:17.5]} 37. Rb5 {[%clk 0:00:36.3]}
37... Rxg2 {[%clk 0:00:18]} 38. h4 {[%clk 0:00:33.1]} 38... Rh2 {[%clk
0:00:15.4]} 39. Rxb6+ {[%clk 0:00:33.4]} 39... Kg7 {[%clk 0:00:15.6]} 40. Rb5
{[%clk 0:00:24.9]} 40... Rxh4+ {[%clk 0:00:15.2]} 41. Ke3 {[%clk 0:00:23.6]}
41... Rh5 {[%clk 0:00:15.1]} 42. Rxh5 {[%clk 0:00:11.3]} 42... gxh5 {[%clk
0:00:14.8]} 43. b4 {[%clk 0:00:12.1]} 43... axb4 {[%clk 0:00:12.7]} 44. a5
{[%clk 0:00:12.7]} 44... b3 {[%clk 0:00:12.5]} 45. Kd2 {[%clk 0:00:12.3]} 45...
b2 {[%clk 0:00:12.7]} 46. Kc2 {[%clk 0:00:13]} 46... h4 {[%clk 0:00:13.2]} 47.
a6 {[%clk 0:00:13.5]} 47... h3 {[%clk 0:00:13.7]} 48. a7 {[%clk 0:00:14.2]}
48... h2 {[%clk 0:00:13.5]} 49. a8=Q {[%clk 0:00:14.5]} 49... b1=Q+ {[%clk
0:00:13.6]} 50. Kxb1 {[%clk 0:00:15.4]} 50... h1=Q+ {[%clk 0:00:14]} 51. Kc2
{[%clk 0:00:16.1]} 51... Qg2+ {[%clk 0:00:14.2]} 52. Kd3 {[%clk 0:00:16.2]}
52... Qg6+ {[%clk 0:00:14.6]} 53. Ke3 {[%clk 0:00:15.4]} 53... Qe6+ {[%clk
0:00:14.5]} 54. Kf2 {[%clk 0:00:15.6]} 54... Qb6+ {[%clk 0:00:13.2]} 55. Kg2
{[%clk 0:00:13.7]} 55... Qg6+ {[%clk 0:00:13.7]} 56. Kf1 {[%clk 0:00:09]} 56...
Qd3+ {[%clk 0:00:12.4]} 57. Kf2 {[%clk 0:00:09]} 57... Qd2+ {[%clk 0:00:12.9]}
58. Kg3 {[%clk 0:00:06.7]} 58... Qg5+ {[%clk 0:00:13.4]} 59. Kf2 {[%clk
0:00:05.9]} 59... Qd2+ {[%clk 0:00:13.4]} 60. Kg3 {[%clk 0:00:06.4]} 60... Qg5+
{[%clk 0:00:13.3]} 61. Kf2 {[%clk 0:00:06.8]} 61... Qd2+ {[%clk 0:00:13.3]}
1/2-1/2

[Event "Early-Titled-Tuesday-Blitz-January-16-2024"]
[Site "Chess.com"]
[Date "2024.01.16"]
[Round "3"]
[White "almaguerjm"]
[Black "Zurability"]
[Result "1/2-1/2"]
[WhiteElo "2496"]
[BlackElo "2720"]
[TimeControl "180+1"]
[EndTime "8:30:06 PST"]
[Termination "Game drawn - insufficient material"]

1. e4 {[%clk 0:03:00.9]} 1... c5 {[%clk 0:02:59.9]} 2. Nf3 {[%clk 0:03:00.5]}
2... d6 {[%clk 0:02:59.7]} 3. d4 {[%clk 0:03:01]} 3... cxd4 {[%clk 0:03:00.6]}
4. Nxd4 {[%clk 0:03:01.6]} 4... Nf6 {[%clk 0:03:00.8]} 5. Nc3 {[%clk 0:03:02.1]}
5... g6 {[%clk 0:03:00.8]} 6. Be2 {[%clk 0:03:01.3]} 6... Bg7 {[%clk 0:03:00.9]}
7. Be3 {[%clk 0:03:00.5]} 7... Nc6 {[%clk 0:03:01]} 8. g4 {[%clk 0:02:55.2]}
8... Bxg4 {[%clk 0:02:17.7]} 9. Nxc6 {[%clk 0:02:07.1]} 9... Bxe2 {[%clk
0:02:14.9]} 10. Qxe2 {[%clk 0:01:32]} 10... bxc6 {[%clk 0:02:09.3]} 11. Qa6
{[%clk 0:01:32.5]} 11... Qc7 {[%clk 0:01:54.8]} 12. e5 {[%clk 0:01:29.7]} 12...
dxe5 {[%clk 0:01:37.9]} 13. h3 {[%clk 0:01:26.6]} 13... O-O {[%clk 0:01:33.3]}
14. O-O-O {[%clk 0:01:23.2]} 14... e6 {[%clk 0:01:20.5]} 15. Bc5 {[%clk
0:01:18.4]} 15... Rfc8 {[%clk 0:01:10.1]} 16. Bd6 {[%clk 0:01:18.1]} 16... Qb6
{[%clk 0:01:09.5]} 17. Qxb6 {[%clk 0:01:18]} 17... axb6 {[%clk 0:01:09.7]} 18.
Bxe5 {[%clk 0:01:18.6]} 18... Nd5 {[%clk 0:01:09.5]} 19. Bxg7 {[%clk 0:01:17.7]}
19... Kxg7 {[%clk 0:01:10.4]} 20. Ne4 {[%clk 0:01:17.6]} 20... Rxa2 {[%clk
0:01:09.4]} 21. c3 {[%clk 0:01:11.1]} 21... Ra1+ {[%clk 0:01:02.3]} 22. Kc2
{[%clk 0:01:11.5]} 22... Rxd1 {[%clk 0:01:03.2]} 23. Rxd1 {[%clk 0:01:11.4]}
23... f5 {[%clk 0:01:02.6]} 24. Ng5 {[%clk 0:01:06.9]} 24... Re8 {[%clk
0:00:36.6]} 25. c4 {[%clk 0:01:06.4]} 25... h6 {[%clk 0:00:20.5]} 26. cxd5
{[%clk 0:01:02.1]} 26... hxg5 {[%clk 0:00:20.6]} 27. dxc6 {[%clk 0:01:02.7]}
27... Rc8 {[%clk 0:00:20.6]} 28. Rd7+ {[%clk 0:01:03]} 28... Kf6 {[%clk
0:00:21.1]} 29. c7 {[%clk 0:01:03.4]} 29... e5 {[%clk 0:00:16.9]} 30. Kb3 {[%clk
0:00:58.8]} 30... Ke6 {[%clk 0:00:16.4]} 31. Rg7 {[%clk 0:00:58.9]} 31... Kd6
{[%clk 0:00:09.5]} 32. Rxg6+ {[%clk 0:00:55.9]} 32... Kxc7 {[%clk 0:00:09.8]}
33. Rxg5 {[%clk 0:00:56.8]} 33... Rf8 {[%clk 0:00:10]} 34. Kc4 {[%clk
0:00:56.6]} 34... Kd6 {[%clk 0:00:10.2]} 35. Rg6+ {[%clk 0:00:56.7]} 35... Ke7
{[%clk 0:00:09.9]} 36. Rxb6 {[%clk 0:00:56]} 36... Rh8 {[%clk 0:00:10.3]} 37.
Rb3 {[%clk 0:00:55.9]} 37... Kd6 {[%clk 0:00:09.6]} 38. Rb6+ {[%clk 0:00:55.8]}
38... Kd7 {[%clk 0:00:09]} 39. Kd5 {[%clk 0:00:56]} 39... Rxh3 {[%clk
0:00:08.7]} 40. Rb7+ {[%clk 0:00:52.5]} 40... Kc8 {[%clk 0:00:08.7]} 41. Rb4
{[%clk 0:00:43.1]} 41... e4 {[%clk 0:00:07.2]} 42. Rc4+ {[%clk 0:00:36.3]} 42...
Kd7 {[%clk 0:00:07]} 43. Ke5 {[%clk 0:00:36.3]} 43... Rf3 {[%clk 0:00:07.5]} 44.
Rc2 {[%clk 0:00:36]} 44... Ke7 {[%clk 0:00:04.4]} 45. Rc7+ {[%clk 0:00:35.7]}
45... Kd8 {[%clk 0:00:04.7]} 46. Rc2 {[%clk 0:00:33.2]} 46... Kd7 {[%clk
0:00:05.1]} 47. b4 {[%clk 0:00:27.5]} 47... e3 {[%clk 0:00:04.4]} 48. fxe3
{[%clk 0:00:26.4]} 48... Rxe3+ {[%clk 0:00:05.3]} 49. Kd5 {[%clk 0:00:20.7]}
49... Rb3 {[%clk 0:00:06.2]} 50. Kc5 {[%clk 0:00:19.8]} 50... f4 {[%clk
0:00:06.1]} 51. Rc4 {[%clk 0:00:18.2]} 51... f3 {[%clk 0:00:05.5]} 52. Rf4
{[%clk 0:00:18.8]} 52... Ke6 {[%clk 0:00:05.7]} 53. b5 {[%clk 0:00:17.9]} 53...
Ke5 {[%clk 0:00:05.9]} 54. Rf8 {[%clk 0:00:18.2]} 54... Rc3+ {[%clk 0:00:04.8]}
55. Kb4 {[%clk 0:00:18.5]} 55... Rd3 {[%clk 0:00:03.7]} 56. b6 {[%clk
0:00:18.9]} 56... Ke4 {[%clk 0:00:03.6]} 57. b7 {[%clk 0:00:19.2]} 57... Rd1
{[%clk 0:00:04.3]} 58. Kc3 {[%clk 0:00:15.6]} 58... Rb1 {[%clk 0:00:03.8]} 59.
b8=Q {[%clk 0:00:16]} 59... Rxb8 {[%clk 0:00:04]} 60. Rxb8 {[%clk 0:00:16.9]}
60... f2 {[%clk 0:00:04]} 61. Rf8 {[%clk 0:00:15.4]} 61... Ke3 {[%clk
0:00:04.6]} 62. Kc2 {[%clk 0:00:15.6]} 62... Ke2 {[%clk 0:00:05]} 63. Re8+
{[%clk 0:00:16.1]} 63... Kf3 {[%clk 0:00:05.6]} 64. Rf8+ {[%clk 0:00:15.4]}
64... Kg2 {[%clk 0:00:06.2]} 65. Rg8+ {[%clk 0:00:15.7]} 65... Kh2 {[%clk
0:00:06.5]} 66. Rf8 {[%clk 0:00:15.7]} 66... Kg2 {[%clk 0:00:06.8]} 67. Kd2
{[%clk 0:00:16.2]} 67... f1=Q {[%clk 0:00:06.6]} 68. Rxf1 {[%clk 0:00:16.5]}
68... Kxf1 {[%clk 0:00:07.5]} 1/2-1/2

[Event "Early-Titled-Tuesday-Blitz-January-16-2024"]
[Site "Chess.com"]
[Date "2024.01.16"]
[Round "3"]
[White "AwareIdea"]
[Black "JesseFebruary"]
[Result "1/2-1/2"]
[WhiteElo "2535"]
[BlackElo "1907"]
[TimeControl "180+1"]
[EndTime "8:30:06 PST"]
[Termination "Game drawn by repetition"]

1. d4 {[%clk 0:02:55.6]} 1... Nf6 {[%clk 0:02:59.1]} 2. c4 {[%clk 0:02:55.3]}
2... e6 {[%clk 0:02:59.4]} 3. g3 {[%clk 0:02:55.5]} 3... d5 {[%clk 0:02:59.6]}
4. Bg2 {[%clk 0:02:55.8]} 4... Be7 {[%clk 0:02:59.9]} 5. Nf3 {[%clk 0:02:56.2]}
5... O-O {[%clk 0:03:00.1]} 6. Nc3 {[%clk 0:02:55.7]} 6... dxc4 {[%clk
0:02:59.3]} 7. Ne5 {[%clk 0:02:55.7]} 7... Nc6 {[%clk 0:02:38.3]} 8. Bxc6 {[%clk
0:02:50.4]} 8... bxc6 {[%clk 0:02:39.2]} 9. Nxc6 {[%clk 0:02:51]} 9... Qd7
{[%clk 0:02:35.6]} 10. Nxe7+ {[%clk 0:02:43.8]} 10... Qxe7 {[%clk 0:02:36.5]}
11. Qa4 {[%clk 0:02:43.6]} 11... Bb7 {[%clk 0:02:34.6]} 12. f3 {[%clk
0:02:23.5]} 12... c5 {[%clk 0:02:25.2]} 13. Be3 {[%clk 0:02:16.5]} 13... Nd5
{[%clk 0:02:18]} 14. Bf2 {[%clk 0:02:04.7]} 14... cxd4 {[%clk 0:02:11.2]} 15.
Nxd5 {[%clk 0:01:52.5]} 15... exd5 {[%clk 0:01:54.2]} 16. Bxd4 {[%clk
0:01:51.7]} 16... Rfe8 {[%clk 0:01:50.7]} 17. Qc2 {[%clk 0:01:50.9]} 17... Bc8
{[%clk 0:01:44.4]} 18. h4 {[%clk 0:01:41]} 18... Bf5 {[%clk 0:01:40.8]} 19. Qd2
{[%clk 0:01:34.2]} 19... Bd3 {[%clk 0:01:37.9]} 20. Rh2 {[%clk 0:01:25]} 20...
Qc7 {[%clk 0:01:32.7]} 21. Rg2 {[%clk 0:01:08]} 21... Re6 {[%clk 0:01:12.8]} 22.
Kf1 {[%clk 0:01:03.9]} 22... Bg6 {[%clk 0:01:10.7]} 23. Re1 {[%clk 0:00:58.6]}
23... Rae8 {[%clk 0:01:09.7]} 24. Bc3 {[%clk 0:00:51.7]} 24... h5 {[%clk
0:00:54.2]} 25. g4 {[%clk 0:00:46]} 25... hxg4 {[%clk 0:00:49.9]} 26. Rxg4
{[%clk 0:00:43.5]} 26... Qh2 {[%clk 0:00:48.4]} 27. Qd4 {[%clk 0:00:40]} 27...
Qh3+ {[%clk 0:00:43.4]} 28. Kf2 {[%clk 0:00:34.1]} 28... Qh2+ {[%clk 0:00:41.3]}
29. Rg2 {[%clk 0:00:33.2]} 29... Rxe2+ {[%clk 0:00:35.8]} 30. Rxe2 {[%clk
0:00:27.4]} 30... Rxe2+ {[%clk 0:00:36.7]} 31. Kxe2 {[%clk 0:00:28]} 31... Qxg2+
{[%clk 0:00:37.1]} 32. Ke3 {[%clk 0:00:25.8]} 32... Bd3 {[%clk 0:00:35.8]} 33.
Qg4 {[%clk 0:00:17.2]} 33... Qe2+ {[%clk 0:00:33.3]} 34. Kd4 {[%clk 0:00:17.4]}
34... f6 {[%clk 0:00:30.5]} 35. Kxd5 {[%clk 0:00:14]} 35... Qe7 {[%clk
0:00:26.3]} 36. Qe6+ {[%clk 0:00:12.4]} 36... Qxe6+ {[%clk 0:00:24.6]} 37. Kxe6
{[%clk 0:00:13.3]} 37... Kh7 {[%clk 0:00:24.3]} 38. f4 {[%clk 0:00:08.4]} 38...
Kh6 {[%clk 0:00:23.5]} 39. Kf7 {[%clk 0:00:08.6]} 39... g5 {[%clk 0:00:22.7]}
40. hxg5+ {[%clk 0:00:08.7]} 40... fxg5 {[%clk 0:00:22.5]} 41. fxg5+ {[%clk
0:00:05]} 41... Kxg5 {[%clk 0:00:23.4]} 42. Ke6 {[%clk 0:00:05]} 42... Kf4
{[%clk 0:00:23.2]} 43. a4 {[%clk 0:00:05.2]} 43... Ke4 {[%clk 0:00:22.8]} 44. a5
{[%clk 0:00:05.4]} 44... Kf4 {[%clk 0:00:16.2]} 45. a6 {[%clk 0:00:05.7]} 45...
Be4 {[%clk 0:00:14.9]} 46. Kd6 {[%clk 0:00:06.1]} 46... Bf5 {[%clk 0:00:14]} 47.
Kc5 {[%clk 0:00:06.3]} 47... Be6 {[%clk 0:00:12.7]} 48. Kb5 {[%clk 0:00:06.1]}
48... Ke3 {[%clk 0:00:11.8]} 49. Be5 {[%clk 0:00:05]} 49... Kd3 {[%clk
0:00:10.7]} 50. Ka5 {[%clk 0:00:05.4]} 50... Bc8 {[%clk 0:00:09.7]} 51. Bf6
{[%clk 0:00:05.6]} 51... Kc2 {[%clk 0:00:09.4]} 52. Bd4 {[%clk 0:00:05.4]} 52...
Kb3 {[%clk 0:00:09.5]} 53. Bxa7 {[%clk 0:00:05.2]} 53... Bxa6 {[%clk 0:00:09]}
54. Bd4 {[%clk 0:00:04.3]} 54... Bc8 {[%clk 0:00:08.1]} 55. Bc3 {[%clk
0:00:05.2]} 55... Be6 {[%clk 0:00:07.8]} 56. Kb6 {[%clk 0:00:06.1]} 56... Bg8
{[%clk 0:00:07.8]} 57. Kc5 {[%clk 0:00:07]} 57... Bf7 {[%clk 0:00:08]} 58. Kd4
{[%clk 0:00:07.9]} 58... Bg8 {[%clk 0:00:08.3]} 59. Ke3 {[%clk 0:00:08.8]} 59...
Bf7 {[%clk 0:00:08.6]} 60. Kd2 {[%clk 0:00:09.7]} 60... Bg8 {[%clk 0:00:09.1]}
61. Ke3 {[%clk 0:00:10.1]} 61... Bf7 {[%clk 0:00:09.4]} 62. Kd2 {[%clk 0:00:11]}
62... Bg8 {[%clk 0:00:09.7]} 63. Ke3 {[%clk 0:00:11.9]} 1/2-1/2